Cogmind - Beta 13 @@@ ROGUE MODE // 2024.05.17 @ 17:33:16 Player: Lunace Result: Destroyed by G-47 Trooper with Particle Gun Performance ------------- Evolutions (2) 1000 Regions Visited (6) 1200 Robots Destroyed (45) 225 Value Destroyed (1566) 1566 Prototype IDs (1) 20 Alien Tech Used (0) 0 Bonus (200) 200 TOTAL SCORE: 4211 Bonus ------- Entered Garrisons 200 Cogmind --------- Core Integrity 0/550 Matter 243/300 Energy 234/265 System Corruption 16% Temperature Cool (9) Movement Core (900) Ox17 Location -8/Garrison Parts ------- > --- POWER (1) -------- Reinforced Ion Engine > --- PROPULSION (4) --- (None) > --- UTILITY (4) ------ High-capacity Storage Unit > --- WEAPON (2) ------- Hammer > --- INVENTORY (20) --- High-capacity Matter Pod (200) Peak State ------------ > --- POWER ------------ Light Angular Momentum Engine > --- PROPULSION ------- Light Treads Light Treads Carbon-fiber Leg Carbon-fiber Leg > --- UTILITY ---------- Large Storage Unit Signal Interpreter Bomb Drone Bay > --- WEAPON ----------- Light Cannon Light Cannon > --- INVENTORY -------- Ion Engine Armored Wheel Improved Heat Sink High-capacity Matter Pod Light Armor Plating Light Armor Plating Light Armor Plating Hardlight Generator Light Cannon [Rating: 32] Favorites ----------- Power Ion Engine Engine Ion Engine Propulsion Light Treads Treads Light Treads Leg Carbon-fiber Leg Wheel Armored Wheel Utility Light Armor Plating Device Bomb Drone Bay Storage Large Storage Unit Processor Signal Interpreter Protection Light Armor Plating Weapon Assault Rifle Ballistic Gun Assault Rifle Ballistic Cannon Light Cannon Impact Weapon Hammer Build | -11 -10 -10 -10 -9 -8 -8 ------- Run | Yrd Mat Min Exi Min Mat Gar Slots Evolved 4 | . . . . . 4 . Power . | . . . . . . . Propulsion 2 | . . . . . 2 . Utility 2 | . . . . . 2 . Weapon . | . . . . . . . Parts Attached 44 | 7 6 2 . 6 3 20 Power 8 | 1 1 1 . 1 . 4 Engine 8 | 1 1 1 . 1 . 4 Core . | . . . . . . . Reactor . | . . . . . . . Propulsion 14 | 2 2 . . 2 2 6 Treads 11 | 2 2 . . 2 2 3 Leg 2 | . . . . . . 2 Wheel 1 | . . . . . . 1 Hover . | . . . . . . . Flight . | . . . . . . . Utility 14 | 2 3 . . 2 1 6 Device 4 | 1 . . . . 1 2 Storage 3 | 1 1 . . . . 1 Processor 1 | . . . . 1 . . Hackware . | . . . . . . . Protection 6 | . 2 . . 1 . 3 Artifact . | . . . . . . . Weapon 8 | 2 . 1 . 1 . 4 Energy Gun . | . . . . . . . Energy Cannon . | . . . . . . . Ballistic Gun 3 | 2 . 1 . . . . Ballistic Cannon 4 | . . . . 1 . 3 Launcher . | . . . . . . . Special Weapon . | . . . . . . . Impact Weapon 1 | . . . . . . 1 Slashing Weapon . | . . . . . . . Piercing Weapon . | . . . . . . . Special Melee Weapon . | . . . . . . . Unidentified Prototypes 1 | . . . . . 1 . Parts Lost 25 | . . 1 . 4 . 20 Power 3 | . . . . . . 3 Propulsion 8 | . . . . 2 . 6 Utility 7 | . . . . 1 . 6 Weapon 7 | . . 1 . 1 . 5 Highest Loss Streak 14 | . . 1 . 3 . 14 To Critical Strikes 1 | . . . . . . 1 Average Slot Usage (%) 96 | . 100 100 100 100 90 86 Engine 12 | . 14 14 14 14 9 7 Treads 27 | . 28 28 28 28 36 24 Device 2 | . 4 . . . 9 4 Storage 12 | . 14 14 14 14 9 9 Processor 2 | . . . . . 9 8 Protection 11 | . 9 14 14 13 . 9 Ballistic Gun 19 | . 28 28 28 14 9 . Ballistic Cannon 5 | . . . . 13 9 13 Naked Turns . | . . . . . . . Heaviest Build 59 | 15 32 32 32 33 38 59 Greatest Support 80 | 40 40 40 40 40 80 80 Greatest Overweight (x) 4 | . . . . . . 4 Average Overweight (x) . | . . . . . . 2 Largest Inventory Capacity 20 | 8 15 15 15 15 15 20 Average Capacity 14 | 7 13 15 15 15 15 17 Most Carried 15 | 5 15 15 14 15 12 11 Average Carried 11 | 3 10 14 13 13 10 6 Final Capacity 20 | 8 15 15 15 15 15 20 Final Carried 15 | 5 15 14 14 14 11 1 Class Distribution -------------------- 97% | Mutant Dominant Class ---------------- Mutant | -10/Materials Mutant | -10/Mines Mutant | -10/Exiles Mutant | -9/Mines Mutant | -8/Materials Mutant | -8/Garrison Resources | -11 -10 -10 -10 -9 -8 -8 ----------- Run | Yrd Mat Min Exi Min Mat Gar Matter Collected 1416 | 221 357 199 . 244 86 309 Remotely . | . . . . . . . Salvage Created 1385 | 16 340 368 . 240 80 341 Parts 75 | 2 21 17 . 18 3 14 Haulers Intercepted . | . . . . . . . Recyclers Shooed 2 | 1 . . . 1 . . Parts Field Recycled . | . . . . . . . Retrieved Matter . | . . . . . . . Parts Self-Destructed . | . . . . . . . Prevented . | . . . . . . . Kills | -11 -10 -10 -10 -9 -8 -8 ------- Run | Yrd Mat Min Exi Min Mat Gar Combat Hostiles Destroyed 40 | . 7 8 . 11 3 11 Melee 1 | . . . . . 1 . Guns 21 | . 7 8 . 5 1 . Cannons 18 | . . . . 6 1 11 Classes Destroyed 8 | 1 2 2 . . . 3 Tunneler 1 | 1 . . . . . . Recycler 2 | . . 2 . . . . Watcher 2 | . 2 . . . . . Swarmer 11 | . . 6 . 5 . . Grunt 21 | . 7 2 . 6 3 3 Brawler 3 | . . . . . . 3 Sentry 4 | . . . . . . 4 Programmer 1 | . . . . . . 1 Best Kill Streak 7 | 1 1 4 . 4 1 7 Combat Bots Only 7 | . 1 3 . 4 1 7 Max Kills in Single Turn 1 | 1 1 1 . 1 1 1 Gunslinging . | . . . . . . . Exploded . | . . . . . . . Melee 1 | . . . . . 1 . Uniques/NPCs Destroyed . | . . . . . . . Combat | -11 -10 -10 -10 -9 -8 -8 -------- Run | Yrd Mat Min Exi Min Mat Gar Hostile Shots Fired 362 | . 40 38 . 60 37 187 Missed 84 | . 11 10 . 13 11 39 Damage Taken 4308 | . 431 293 . 581 372 2631 Core 705 | . 55 36 . 53 16 545 Absorbed by Shields 20 | . . . . . . 20 Core Remaining (%) 71 | 100 . . . 42 . . Volleys Fired 154 | 3 43 26 . 31 8 43 Largest 2 | 2 2 2 . 2 2 2 Hottest 70 | 40 40 40 . 55 55 70 Shots Fired 285 | 6 86 52 . 60 16 65 Gun 189 | 6 86 52 . 36 8 1 Cannon 96 | . . . . 24 8 64 Launcher . | . . . . . . . Special . | . . . . . . . Kinetic 285 | 6 86 52 . 60 16 65 Thermal . | . . . . . . . Explosive . | . . . . . . . Electromagnetic . | . . . . . . . Robot Hit Streak 22 | 3 6 9 . 6 5 22 Robot Miss Streak 5 | 1 5 3 . 4 2 2 Penetration Max . | . . . . . . . Secondary Targets 1 | . . 1 . . . . Max Gunslinging Chain 1 | . . 1 . . . . Shots Hit Robots 178 | 4 48 35 . 35 10 46 Core Hits 74 | 1 19 14 . 16 3 21 Critical Kills 1 | . . . . 1 . . Critical Parts Destroyed . | . . . . . . . Critical Strikes 7 | . . . . 2 . 5 Destroy 1 | . . . . 1 . . Blast 6 | . . . . 1 . 5 Melee Attacks 5 | . . . . . . 5 Impact 5 | . . . . . . 5 Slashing . | . . . . . . . Piercing . | . . . . . . . Sneak Attacks . | . . . . . . . Combat Hostiles . | . . . . . . . Follow-up Attacks . | . . . . . . . Damage Inflicted 2696 | 51 623 414 . 549 171 888 Guns 1486 | 51 623 414 . 330 68 . Cannons 1121 | . . . . 219 95 807 Explosions . | . . . . . . . Melee 77 | . . . . . . 77 Ramming 12 | . . . . . 8 4 Kinetic 2607 | 51 623 414 . 549 163 807 Thermal . | . . . . . . . Explosive . | . . . . . . . Electromagnetic . | . . . . . . . Impact 77 | . . . . . . 77 Slashing . | . . . . . . . Piercing . | . . . . . . . Highest Corruption 16 | . . . . . . 16 Average Corruption 8 | . . . . . . 8 Corruption Purged . | . . . . . . . Corruption Blocked . | . . . . . . . Effects 2 | . . . . . . 2 Parts Rejected 1 | . . . . . . 1 Alerts 1 | . . . . . . 1 Overload Shots . | . . . . . . . Overflow Damage 13 | . . . . . . 13 Projectiles . | . . . . . . . Explosions . | . . . . . . . Melee 13 | . . . . . . 13 Knockbacks 6 | . . . . 3 2 1 Impact . | . . . . . . . Kinetic 6 | . . . . 3 2 1 Secondary . | . . . . . . . Self-Inflicted Damage . | . . . . . . . Shots . | . . . . . . . Rammed 3 | . . . . . 1 2 Targets Rammed 4 | . . . . . 2 2 Kicked . | . . . . . . . Crushed 1 | . . . . . 1 . Highest Temperature 219 | . 8 13 . 166 1 219 Average Temperature 57 | . 3 6 . 54 1 100 Received Heat Transfer 1310 | . 222 87 . 321 135 545 Siege Activations . | . . . . . . . Robots Corrupted . | . . . . . . . Combat Hostiles . | . . . . . . . Parts Fried . | . . . . . . . Impact Corruptions 1 | . . . . . . 1 Robots Melted . | . . . . . . . Combat Hostiles . | . . . . . . . Parts Melted . | . . . . . . . Heat Transferred . | . . . . . . . Parts Sabotaged . | . . . . . . . Parts Stolen . | . . . . . . . Parts Stripped . | . . . . . . . Power Chain Reactions . | . . . . . . . Alert | -11 -10 -10 -10 -9 -8 -8 ------- Run | Yrd Mat Min Exi Min Mat Gar Peak Influence 263 | 5 216 157 . 200 113 263 Initial 75 | . 3 37 . . 13 75 Average 80 | 1 97 67 . 52 39 130 Maximum Alert Level 1 | . 1 . . 1 . 1 Low Security (%) 92 | 100 82 100 . 90 100 91 Level 1 7 | . 17 . . 9 . 8 Level 2 . | . . . . . . . Level 3 . | . . . . . . . Level 4 . | . . . . . . . Level 5 . | . . . . . . . High Security . | . . . . . . . Max Security . | . . . . . . . Squads Dispatched 2 | . 1 . . . 1 . Investigation 1 | . 1 . . . . . Extermination . | . . . . . . . Reinforcement 1 | . . . . . 1 . Assault . | . . . . . . . Garrison . | . . . . . . . Intercept . | . . . . . . . Searches Triggered . | . . . . . . . Construction Impeded . | . . . . . . . Haulers Reinforced . | . . . . . . . Active Scanning Responses . | . . . . . . . Cargo Convoy Interrupts . | . . . . . . . Stealth | -11 -10 -10 -10 -9 -8 -8 --------- Run | Yrd Mat Min Exi Min Mat Gar Distress Signals 1 | . . . . . 1 . Communications Jammed . | . . . . . . . Distress Signals . | . . . . . . . Times Spotted 81 | . 15 13 . 11 12 30 Peak Tracking Total 11 | . 3 5 . 4 11 10 Tactical Retreats 6 | . 3 2 . . . 1 Traps | -11 -10 -10 -10 -9 -8 -8 ------- Run | Yrd Mat Min Exi Min Mat Gar Traps Triggered 2 | . 2 . . . . . Indirectly . | . . . . . . . Trap Hack Attempts . | . . . . . . . Triggered . | . . . . . . . Disarmed . | . . . . . . . Reprogrammed . | . . . . . . . Reused . | . . . . . . . Traps Extracted . | . . . . . . . Installed 2 | . . 2 . . . . Triggered . | . . . . . . . Machines | -11 -10 -10 -10 -9 -8 -8 ---------- Run | Yrd Mat Min Exi Min Mat Gar Machines Disabled 1 | . . . . . . 1 Max in Single Turn 1 | . . . . . . 1 Garrison Relay 1 | . . . . . . 1 Machines Repaired . | . . . . . . . Machines Dismantled . | . . . . . . . Machines Sabotaged . | . . . . . . . Overloaded Fab Kills . | . . . . . . . Hacking | -11 -10 -10 -10 -9 -8 -8 --------- Run | Yrd Mat Min Exi Min Mat Gar Machines Accessed 14 | . 7 . 1 1 4 1 Terminals 10 | . 7 . . . 2 1 Fabricators . | . . . . . . . Repair Stations . | . . . . . . . Recycling Units . | . . . . . . . Scanalyzers 1 | . . . . . 1 . Garrison Access 1 | . . . . . 1 . Total Hacks 37 | . 21 . 1 1 10 4 Successful 18 | . 9 . 1 1 6 1 Failed 19 | . 12 . . . 4 3 Catastrophic 4 | . 3 . . . . 1 Database Lockouts . | . . . . . . . Manual 24 | . 17 . 3 . 4 . Terminals 31 | . 21 . . . 6 4 Fabricators . | . . . . . . . Repair Stations . | . . . . . . . Recycling Units . | . . . . . . . Scanalyzers 2 | . . . . . 2 . Garrison Access 2 | . . . . . 2 . Terminal Hacks 4 | . 1 . 1 1 . 1 Record 1 | . . . 1 . . . Open Door 1 | . . . . 1 . . Locate Traps 1 | . 1 . . . . . Patrol Navigation 1 | . . . . . . 1 Fabricator Hacks . | . . . . . . . Repair Station Hacks . | . . . . . . . Recycling Unit Hacks . | . . . . . . . Scanalyzer 2 | . . . . . 2 . Insert Component 1 | . . . . . 1 . Analyze 1 | . . . . . 1 . Garrison Access Hacks 1 | . . . . . 1 . Unlock Access 1 | . . . . . 1 . Unauthorized Hacks 11 | . 8 . . . 3 . Terminals 11 | . 8 . . . 3 . Assimilate 1 | . 1 . . . . . Botnet 8 | . 6 . . . 2 . Operators 2 | . 1 . . . 1 . Fabricators . | . . . . . . . Repair Stations . | . . . . . . . Recycling Units . | . . . . . . . Scanalyzers . | . . . . . . . Garrison Access . | . . . . . . . Data Cores Recovered . | . . . . . . . Used . | . . . . . . . Hacking Detections 10 | . 7 . . . 2 1 Full Trace Events . | . . . . . . . Feedback Events . | . . . . . . . Feedback Blocked . | . . . . . . . Robot Schematics Acquired . | . . . . . . . Robots Built . | . . . . . . . Authchips . | . . . . . . . Time . | . . . . . . . Total Robot Build Rating . | . . . . . . . Part Schematics Acquired 1 | . . . . . 1 . Parts Built . | . . . . . . . Authchips . | . . . . . . . Time . | . . . . . . . Total Part Build Rating . | . . . . . . . Parts Repaired . | . . . . . . . Time . | . . . . . . . Parts Recycled . | . . . . . . . Recycled Matter . | . . . . . . . Retrieved Matter . | . . . . . . . Retrieved Components . | . . . . . . . Parts Scanalyzed 1 | . . . . . 1 . Part Schematics Acquired 1 | . . . . . 1 . Parts Damaged . | . . . . . . . Bothacking | -11 -10 -10 -10 -9 -8 -8 ------------ Run | Yrd Mat Min Exi Min Mat Gar Used RIF Installer . | . . . . . . . Robots Hacked . | . . . . . . . Non-combat . | . . . . . . . Combat . | . . . . . . . Robot Hacks Applied . | . . . . . . . Relay Couplers Released 3 | . . . . . . 3 Machine Destruction 3 | . . . . . . 3 Fabnet Peak Effective % . | . . . . . . . Robots Rewired . | . . . . . . . Allies Hacked . | . . . . . . . Hacks Repelled . | . . . . . . . Allies | -11 -10 -10 -10 -9 -8 -8 -------- Run | Yrd Mat Min Exi Min Mat Gar Total Allies 1 | . 1 . . . . . Largest Group 1 | . 1 1 . . . . Highest-Rated Group 10 | . 10 10 . . . . Highest-Rated Ally 10 | . 10 10 . . . . Total Orders 12 | . . 2 . . . 10 STAY 1 | . . 1 . . . . FOLLOW 1 | . . 1 . . . . EXPLORE 7 | . . . . . . 7 RETURN 3 | . . . . . . 3 Ally Attacks 13 | . . . . . 1 12 Total Damage . | . . . . . . . Kills . | . . . . . . . Allies Corrupted . | . . . . . . . Allies Melted . | . . . . . . . Intel | -11 -10 -10 -10 -9 -8 -8 ------- Run | Yrd Mat Min Exi Min Mat Gar Robot Analysis Total . | . . . . . . . Derelict Logs Recovered 1 | . . 1 . . . . Drone Launches 18 | . . . . . 1 17 Drone Recoveries 2 | . . . . . . 2 Exploration | -11 -10 -10 -10 -9 -8 -8 ------------- Run | Yrd Mat Min Exi Min Mat Gar Turns Passed 3952 | 114 931 927 327 731 221 701 Spaces Moved 1974 | 59 446 475 204 356 113 321 Core 3 | 3 . . . . . . Treads 1755 | 56 446 475 204 356 113 105 Legs . | . . . . . . . Wheels 216 | . . . . . . 216 Hover . | . . . . . . . Flight . | . . . . . . . Fastest Speed 50 | 50 160 160 160 160 160 135 Average Speed 158 | 154 160 160 160 160 160 154 Slowest Speed 320 | 160 160 160 160 160 160 320 Overloaded Moves . | . . . . . . . Propulsion Burnouts . | . . . . . . . Robots Hopped . | . . . . . . . Cave-ins Triggered . | . . . . . . . Exploration Rate (%) 52 | 5 79 77 58 66 16 69 Regions Visited 6 Branch Regions 3 Pre-discovered Areas 1 | . . . 1 . . . Known Exits Taken 2 | . . . . 1 1 . Unknown Exits Taken 4 | 1 1 1 1 . . . Scrap Searched 3 | . . 1 . 2 . . Spaces Dug . | . . . . . . . Terrain Destroyed 1 | . . . . . 1 . Melee . | . . . . . . . Projectile 1 | . . . . . 1 . AOE . | . . . . . . . Terrain Rammed . | . . . . . . . Walls Destroyed . | . . . . . . . Machines Disabled . | . . . . . . . Actions | -11 -10 -10 -10 -9 -8 -8 --------- Run | Yrd Mat Min Exi Min Mat Gar Total 2490 | 73 582 590 205 458 136 446 Wait 265 | . 62 85 . 60 9 49 Move 1969 | 58 445 474 203 355 113 321 Hop . | . . . . . . . Pick Up 26 | 5 15 . 1 4 1 . Fast Attach 17 | 7 1 . . . . 9 Attach 18 | . . 1 . 4 3 10 Detach . | . . . . . . . Swap 9 | . 5 1 . 2 . 1 Drop 21 | . 11 1 1 2 . 6 Fire 154 | 3 43 26 . 31 8 43 Melee 5 | . . . . . . 5 Ram . | . . . . . . . Kick . | . . . . . . . Crush 4 | . . . . . 2 2 Escape Stasis . | . . . . . . . Rewire . | . . . . . . . Trap 2 | . . 2 . . . . Miscellaneous . | . . . . . . . Route ------- -11/Scrapyard -10/Materials (discovered 3 exits: [*Mat x2] / [*Min]) -10/Mines (discovered 3 exits: [*Mat x2] / *Exi) -10/Exiles -9/Mines (discovered 2 exits: *Mat x2) -8/Materials -8/Garrison (discovered 3 exits: *Mat x3) History --------- Turn | Location | Event 20 | -11/Scrapyard | Discovered new exit (range 16) 115 | -11/Scrapyard | Entered Materials 307 | -10/Materials | Build established: Mutant 503 | -10/Materials | Discovered new exit (range 15) 625 | -10/Materials | Discovered new exit (range 16) 839 | -10/Materials | Discovered new exit (range 6) 1046 | -10/Materials | Entered Mines 1046 | -10/Mines | Accompanied by 1 ally 1105 | -10/Mines | Found a hidden stash of uninstalled traps 1499 | -10/Mines | Discovered new exit (range 11) 1558 | -10/Mines | Learned Materials interactive machine intel 1565 | -10/Mines | Discovered new exit (range 7) 1965 | -10/Mines | Deemed a non-threat by the Exiles lab entrance 1966 | -10/Mines | Discovered new exit (range 5) 1973 | -10/Mines | Entered Exiles 2012 | -10/Exiles | Met 8R-AWN 2039 | -10/Exiles | Met EX-HEX 2085 | -10/Exiles | Met EX-BIN 2202 | -10/Exiles | Met EX-DEC 2210 | -10/Exiles | Learned location of Zion (-6) 2281 | -10/Exiles | Discovered new exit (range 14) 2300 | -10/Exiles | Entered Mines 2320 | -9/Mines | Met a Derelict bent on vengeance 2329 | -9/Mines | Core integrity fell below 50% 2351 | -9/Mines | Lost 3 parts (1n1u1w) 2431 | -9/Mines | Found the Drone Emporium 2439 | -9/Mines | Found Prototype Device 2977 | -9/Mines | Discovered new exit (range 15) 2993 | -9/Mines | Discovered new exit (range 15) 3002 | -9/Mines | Identified exit to Materials 3031 | -9/Mines | Entered Materials 3031 | -8/Materials | Evolved 4 slots: Propulsion x2, Utility x2 3031 | -8/Materials | Identified Bomb Drone Bay 3032 | -8/Materials | Loaded intel: 19 interactive machine locations 3252 | -8/Materials | Identified exit to Garrison 3252 | -8/Materials | Entered Garrison 3306 | -8/Garrison | Triggered checkpoint 3328 | -8/Garrison | Garrison Relay disabled 3338 | -8/Garrison | Lost 3 parts (1p1n1w) 3338 | -8/Garrison | Lost 3 allies 3394 | -8/Garrison | Triggered checkpoint 3435 | -8/Garrison | Lost 4 allies 3440 | -8/Garrison | Triggered checkpoint 3465 | -8/Garrison | Discovered new exit (range 32) 3480 | -8/Garrison | Discovered new exit (range 36) 3487 | -8/Garrison | Triggered checkpoint 3488 | -8/Garrison | Triggered checkpoint 3496 | -8/Garrison | Discovered new exit (range 54) 3827 | -8/Garrison | Identified exit to Materials 3854 | -8/Garrison | Triggered checkpoint 3860 | -8/Garrison | Triggered checkpoint 3914 | -8/Garrison | System corruption reached 10% 3933 | -8/Garrison | Core integrity fell below 50% 3937 | -8/Garrison | Destroyed 7 combat bots 3950 | -8/Garrison | Core integrity fell below 20% 3953 | -8/Garrison | Destroyed by G-47 Trooper with Particle Gun Last Messages --------------- emitted. 03922_ Acquired Lgt. Treads. 03923_ Lgt. Treads destroyed. 03924_ Slammed into P-60 Hacker. 03925_ Acquired 21 matter. 03926_ Ion Engine destroyed. 03927_ Slammed into P-60 Hacker. 03930_ Acquired Hammer. 03932_ Destroyed Target Analyzer. 03932_ P-60 Hacker system corrupted by crushing effect. 03934_ P-60 Hacker resets P-60 Hacker, system corruption cleaned. 03938_ Acquired Rnf. Ion Engine. 03939_ Acquired 36 matter. 03942_ System corrupted: Imp. Heat Sink rejected. 03943_ Lgt. Treads destroyed. 03947_ P-60 Hacker resets P-60 Hacker, system corruption cleaned. Map ----- +----------------------------------------------------+ | ?????????????????????????????????????????????????? | | ?????????????????????????????????????????????????? | | ?????????????????????????????????????????????????? | | ?????????????????????????????????????????????????? | | ?????????????????????????????????????????????????? | | ?????????????????????????????????????????????????? | | ?????????????????????????????????????????????????? | | ?????????????????????????????????????????????????? | | ?????????????????????????????????????????????????? | | ?????????????????????????????????????????????????? | | ?????????????????????????????????????????????????? | | ?????????????????????????????????????????????????? | | ?????????????????????????????????????????????????? | | ?????????????????????????????????????????????????? | | ?????????????????????????????????????????????????? | | ??????????????????#??????????????????????????????? | | ??????????????????#"?????????????????????????????? | | ??????????????????#" ???????????????????????????? | | ??????????????????## !??????????????????????????? | | ????????????# ###+++++####?????????????????????? | | ????????????#%*% *%=%!%*#?????????????????????? | | ????????????# #### =%### #?????????????????????? | | ?????????????????????????# #?????????????????????? | | ?????????????????????????# #?????????????????????? | | ???????????????????????###g+#""#?????????????????? | | ???????????????????????#=@%; "#?????????????????? | | ???????????????????????#p[!/ "#?????????????????? | | ???????????????????????# p "#?????????????????? | | ???????????????????????### /#""#?????????????????? | | ?????????????????????????# ##?##?????????????????? | | ?????????????????????????# #?????????????????????? | | ######???????????????????# #?????????????????????? | | #???????????????????# #???#####?????????????? | | #???????????????????# #???# #?????????????? | | ### #?????????????????### ##### < #?????????????? | | ??# #?????????????????# #?????????????? | | ??# #?????????????????# #?????????????? | | ??# #?????????????????# ##########?????????????? | | ??# #######???????????# #??????????????????????? | | ??# ##%[ #???????????# #??????????????????????? | | ### ### ######??????# #??????????????????????? | | ######## #??????????????????????? | | #??????????????????????? | | #??????????????????????? | | ## = # ##########??????????????????????? | | ## # ### #???????????????????????????? | | =% =! #???????????????????????????? | | [ = ####???????????????????????????? | | *[#??????????????????????????????? | | #??????????????????????????????? | +----------------------------------------------------+ Best States ------------- Heat Dissipation 45 Energy Generation 18 Energy Capacity 265 Matter Stores 300 Matter Capacity 300 Sight Range 16 Terrain Scan Range 16 Terrain Scan Density 10 Armor Coverage 300 Evasion (%) 40 Recoil Reduction 4 Item Schematics ----------------- Imp. Heat Sink | -8/Materials | Scanalyzed Robot Schematics ------------------ None Fabricated ------------ Nothing Alien Tech Used ----------------- None Achievements -------------- None Challenges ------------ None Game ------ Seed CorruptionCloakKit Manual? 0 Play Time 00:24:27 Cumulative 187.8 hours Start 2024.05.17 @ 17:11:40 End 2024.05.17 @ 17:33:16 Sessions 1 Manual Loads 0 Difficulty Rogue Special Mode None Game No. 182 Rogue 177 Adventurer 5 Explorer 0 Win Type - Total 3 Types 2/0/0/1/0/0/0/0/0 Lore% 54 Gallery% 75 Achievement% 56 Wizard Run 0 Options --------- Layout 2 ASCII 0 Keyboard 0 Movement Arrows Keybinds 0 Fullscreen 1 Font 24/Terminus Map View 50x44 Zoom Use 0% Tactical HUD 1 Map Filters NONE Filters NONE Steam 1 RUN: 35d7a657-c812-4dfa-9b03-6bed2e72a588